[Event "Bruges Masters 2018"]
[Site "Brugge"]
[Date "2018.08.16"]
[Round "4"]
[White "Van Foreest, Lucas"]
[Black "Damen, Jip"]
[Result "1/2-1/2"]
[ECO "B06"]
[WhiteElo "2488"]
[BlackElo "2183"]
[Annotator "ChessBase"]
[PlyCount "75"]
[EventDate "2018.08.12"]
[EventType "swiss"]
[EventCountry "BEL"]
[SourceTitle "playchess.com"]
[Source "ChessBase"]
[SourceQuality "1"]
[TimeControl "5400+30"]

1. e4 {[%emt 0:13:17]} g6 {[%emt 0:01:13]} 2. d4 {[%emt 0:00:15]} d6 {[%emt 0:00:07]} 3. Nc3 {[%emt 0:00:53]} Bg7 {[%emt 0:00:10]} 4. Be3 {[%emt 0:00:07]} a6 {[%emt 0:00:05]} 5. h4 {[%emt 0:00:19]} h5 {[%emt 0:01:16]} 6. Nh3 {[%emt 0:01:01]} Bxh3 {[%emt 0:00:24]} 7. Rxh3 {[%emt 0:00:10]} Nd7 {[%emt 0:01:03]} 8. f3 {[%emt 0:09:19]} Rc8 {[%emt 0:01:06]} 9. Qd2 {[%emt 0:03:09]} c5 {[%emt 0:00:51]} 10. O-O-O {[%emt 0:04:55]} Qa5 {[%emt 0:01:38]} 11. Kb1 {[%emt 0:00:34]} cxd4 {[%emt 0:03:57]} 12. Bxd4 {[%emt 0:00:08]} Bxd4 {[%emt 0:00:23]} 13. Qxd4 {[%emt 0:00:10]} Ngf6 {[%emt 0:00:30]} 14. Qd2 {[%emt 0:03:30]} Qc5 {[%emt 0:01:40]} 15. Be2 {[%emt 0:01:30]} b5 {[%emt 0:01:12]} 16. Rhh1 {[%emt 0:03:42]} Nb6 {[%emt 0:01:03]} 17. a3 {[%emt 0:06:58]} Rc7 {[%emt 0:04:37]} 18. g4 {[%emt 0:03:39]} hxg4 {[%emt 0:02:19]} 19. fxg4 {[%emt 0:00:23]} Qe5 {[%emt 0:00:25]} 20. g5 {[%emt 0:05:25]} Rxc3 {[%emt 0:16:39]} 21. gxf6 {[%emt 0:07:15]} Na4 {[%emt 0:03:43]} 22. fxe7 {[%emt 0:06:52]} Rh3 {[%emt 0:07:04]} 23. c3 {[%emt 0:00:40]} Rxh1 {[%emt 0:00:46]} 24. Rxh1 {[%emt 0:00:04]} Kxe7 {[%emt 0:11:22]} 25. Bf3 {[%emt 0:03:40]} Nc5 {[%emt 0:03:41]} 26. Qf2 {[%emt 0:00:07]} Qf4 {[%emt 0:02:06]} 27. e5 {[%emt 0:04:41]} Ne6 {[%emt 0:04:41]} 28. exd6+ {[%emt 0:01:48]} Qxd6 {[%emt 0:00:21]} 29. Ka1 {[%emt 0:03:07]} Qc5 {[%emt 0:01:06]} 30. Qe2 {[%emt 0:00:21]} a5 {[%emt 0:03:00]} 31. Bg4 {[%emt 0:01:45]} Qc4 {[%emt 0:05:11]} 32. Qe5 {[%emt 0:00:53]} f6 {[%emt 0:01:11]} 33. Qg3 {[%emt 0:00:06]} Qf4 {[%emt 0:04:31]} 34. Qg2 {[%emt 0:00:24]} f5 {[%emt 0:00:16]} 35. Be2 {[%emt 0:02:08]} b4 {[%emt 0:01:36]} 36. cxb4 {[%emt 0:05:28]} axb4 {[%emt 0:00:13]} 37. Qb7+ {[%emt 0:02:18]} Kf6 {[%emt 0:00:40]} 38. Qxb4 {[%emt 0:03:02]} 1/2-1/2

[Event "Bruges Masters 2018"]
[Site "Brugge"]
[Date "2018.08.16"]
[Round "4"]
[White "Lai, Hing Ting"]
[Black "Rajesh, V A V"]
[Result "0-1"]
[ECO "A36"]
[WhiteElo "2459"]
[BlackElo "2325"]
[Annotator "ChessBase"]
[PlyCount "84"]
[EventDate "2018.08.12"]
[EventType "swiss"]
[EventCountry "BEL"]
[SourceTitle "playchess.com"]
[Source "ChessBase"]
[SourceQuality "1"]
[TimeControl "5400+30"]

1. c4 {[%emt 0:00:00]} Nf6 {[%emt 0:00:00]} 2. g3 {[%emt 0:00:00]} c5 {[%emt 0:01:13]} 3. Bg2 {[%emt 0:00:00]} Nc6 {[%emt 0:00:05]} 4. Nc3 {[%emt 0:00:12]} e5 {[%emt 0:00:36]} 5. e3 {[%emt 0:03:00]} d6 {[%emt 0:00:11]} 6. Nge2 {[%emt 0:00:15]} Be6 {[%emt 0:01:16]} 7. Nd5 {[%emt 0:00:52]} Be7 {[%emt 0:10:18]} 8. O-O {[%emt 0:06:01]} O-O {[%emt 0:05:37]} 9. b3 {[%emt 0:04:25]} Qd7 {[%emt 0:05:27]} 10. Nxe7+ {[%emt 0:02:20]} Nxe7 {[%emt 0:02:28]} 11. d4 {[%emt 0:00:26]} exd4 {[%emt 0:00:08]} 12. exd4 {[%emt 0:00:10]} Bh3 {[%emt 0:00:05]} 13. Bb2 {[%emt 0:04:18]} Bxg2 {[%emt 0:01:02]} 14. Kxg2 {[%emt 0:00:02]} Ng6 {[%emt 0:00:09]} 15. Qd3 {[%emt 0:02:41]} Rfe8 {[%emt 0:00:55]} 16. h3 {[%emt 0:12:46]} Ne4 {[%emt 0:15:38]} 17. Rad1 {[%emt 0:03:37]} Qe6 {[%emt 0:16:25]} 18. Ng1 {[%emt 0:07:46]} d5 {[%emt 0:11:15]} 19. dxc5 {[%emt 0:05:23]} dxc4 {[%emt 0:00:38]} 20. Qd4 {[%emt 0:01:12]} Qe5 {[%emt 0:06:53]} 21. Qxe5 {[%emt 0:05:37]} Nxe5 {[%emt 0:00:07]} 22. Bxe5 {[%emt 0:00:17]} Rxe5 {[%emt 0:00:06]} 23. Rfe1 {[%emt 0:00:33]} Re6 {[%emt 0:03:23]} 24. b4 {[%emt 0:01:41]} a5 {[%emt 0:00:34]} 25. a3 {[%emt 0:00:43]} g6 {[%emt 0:02:33]} 26. Ne2 {[%emt 0:07:43]} axb4 {[%emt 0:06:14]} 27. axb4 {[%emt 0:00:02]} Ra2 {[%emt 0:01:30]} 28. Rd8+ {[%emt 0:07:24]} Kg7 {[%emt 0:00:11]} 29. Nf4 {[%emt 0:00:22]} Re5 {[%emt 0:00:49]} 30. Kg1 {[%emt 0:00:16]} c3 {[%emt 0:02:47]} 31. Rd3 {[%emt 0:03:02]} c2 {[%emt 0:00:30]} 32. Rde3 {[%emt 0:01:25]} Ng5 {[%emt 0:00:37]} 33. Rxe5 {[%emt 0:08:31]} Nf3+ {[%emt 0:00:05]} 34. Kg2 {[%emt 0:00:26]} Nxe5 {[%emt 0:00:06]} 35. h4 {[%emt 0:00:05]} Rb2 {[%emt 0:02:18]} 36. Rc1 {[%emt 0:00:24]} Nc6 {[%emt 0:03:15]} 37. b5 {[%emt 0:03:39]} Nd4 {[%emt 0:00:51]} 38. c6 {[%emt 0:03:14]} bxc6 {[%emt 0:00:16]} 39. bxc6 {[%emt 0:00:01]} Nxc6 {[%emt 0:00:23]} 40. Nd3 {[%emt 0:00:20]} Ra2 {[%emt 0:00:09]} 41. f3 {[%emt 0:02:58]} Nd4 {[%emt 0:00:48]} 42. Ne1 {[%emt 0:00:02]} Ra3 {[%emt 0:01:15]} 0-1

[Event "Bruges Masters 2018"]
[Site "Brugge"]
[Date "2018.08.16"]
[Round "4"]
[White "Geirnaert, Steven"]
[Black "Den Hartog, Marijn"]
[Result "1-0"]
[ECO "A65"]
[WhiteElo "2427"]
[BlackElo "2118"]
[Annotator "ChessBase"]
[PlyCount "83"]
[EventDate "2018.08.12"]
[EventType "swiss"]
[EventCountry "BEL"]
[SourceTitle "playchess.com"]
[Source "ChessBase"]
[SourceQuality "1"]
[TimeControl "5400+30"]

1. d4 {[%emt 0:01:49]} Nf6 {[%emt 0:00:00]} 2. c4 {[%emt 0:00:08]} g6 {[%emt 0:00:00]} 3. f3 {[%emt 0:00:07]} Bg7 {[%emt 0:00:00]} 4. e4 {[%emt 0:00:05]} d6 {[%emt 0:00:03]} 5. Nc3 {[%emt 0:00:03]} O-O {[%emt 0:00:08]} 6. Nge2 {[%emt 0:00:17]} c5 {[%emt 0:01:57]} 7. d5 {[%emt 0:02:09]} e6 {[%emt 0:03:34]} 8. Bg5 {[%emt 0:00:25]} exd5 {[%emt 0:01:24]} 9. cxd5 {[%emt 0:03:12]} a6 {[%emt 0:16:17]} 10. a4 {[%emt 0:00:34]} Re8 {[%emt 0:00:37]} 11. Qd2 {[%emt 0:01:39]} Qa5 {[%emt 0:06:37]} 12. Ra3 {[%emt 0:03:08]} Nbd7 {[%emt 0:06:22]} 13. Nc1 {[%emt 0:01:36]} Rb8 {[%emt 0:00:50]} 14. Be2 {[%emt 0:00:50]} Qc7 {[%emt 0:00:44]} 15. Be3 {[%emt 0:12:55]} b6 {[%emt 0:05:26]} 16. O-O {[%emt 0:06:22]} Ne5 {[%emt 0:06:44]} 17. Nb3 {[%emt 0:05:29]} h5 {[%emt 0:01:29]} 18. h3 {[%emt 0:01:21]} Qe7 {[%emt 0:06:32]} 19. Bg5 {[%emt 0:00:50]} Ned7 {[%emt 0:01:04]} 20. Raa1 {[%emt 0:01:47]} Qf8 {[%emt 0:00:26]} 21. Rae1 {[%emt 0:01:20]} Nh7 {[%emt 0:00:10]} 22. Be3 {[%emt 0:00:53]} Ndf6 {[%emt 0:05:03]} 23. Bc4 {[%emt 0:09:37]} h4 {[%emt 0:07:12]} 24. Qd3 {[%emt 0:00:09]} Ra8 {[%emt 0:02:08]} 25. Bf2 {[%emt 0:04:15]} Nh5 {[%emt 0:02:40]} 26. Bxh4 {[%emt 0:01:48]} g5 {[%emt 0:00:11]} 27. Bf2 {[%emt 0:00:13]} Nf4 {[%emt 0:08:36]} 28. Qd2 {[%emt 0:00:02]} Be5 {[%emt 0:03:17]} 29. Be3 {[%emt 0:07:12]} Qh6 {[%emt 0:00:57]} 30. Rf2 {[%emt 0:00:16]} Nf6 {[%emt 0:01:49]} 31. Bf1 {[%emt 0:00:32]} Qh4 {[%emt 0:01:07]} 32. Ne2 {[%emt 0:07:58]} N6h5 {[%emt 0:01:18]} 33. Nbc1 {[%emt 0:27:29]} f5 {[%emt 0:05:27]} 34. exf5 {[%emt 0:00:00]} Bxf5 {[%emt 0:01:50]} 35. g4 {[%emt 0:00:00]} Ng3 {[%emt 0:04:21]} 36. Bxf4 {[%emt 0:00:00]} Bxf4 {[%emt 0:00:56]} 37. Nxf4 {[%emt 0:00:00]} gxf4 {[%emt 0:00:29]} 38. gxf5 {[%emt 0:00:00]} Nxf5 {[%emt 0:00:13]} 39. Rg2+ {[%emt 0:00:00]} Ng3 {[%emt 0:00:14]} 40. Ne2 {[%emt 0:00:00]} Rf8 {[%emt 0:00:32]} 41. Nxg3 {[%emt 0:00:00]} fxg3 {[%emt 0:00:02]} 42. Re4 {[%emt 0:00:00]} 1-0

[Event "Bruges Masters 2018"]
[Site "Brugge"]
[Date "2018.08.16"]
[Round "4"]
[White "Chernov, Vadim"]
[Black "Beckett, Chris J"]
[Result "1/2-1/2"]
[ECO "C07"]
[WhiteElo "2412"]
[BlackElo "2155"]
[Annotator "ChessBase"]
[PlyCount "38"]
[EventDate "2018.08.12"]
[EventType "swiss"]
[EventCountry "BEL"]
[SourceTitle "playchess.com"]
[Source "ChessBase"]
[SourceQuality "1"]
[TimeControl "5400+30"]

1. e4 {[%emt 0:00:00]} e6 {[%emt 0:01:06]} 2. d4 {[%emt 0:00:00]} d5 {[%emt 0:00:11]} 3. Nd2 {[%emt 0:00:00]} c5 {[%emt 0:00:11]} 4. Ngf3 {[%emt 0:00:00]} cxd4 {[%emt 0:00:10]} 5. exd5 {[%emt 0:00:00]} Qxd5 {[%emt 0:00:06]} 6. Bc4 {[%emt 0:00:00]} Qd7 {[%emt 0:00:10]} 7. O-O {[%emt 0:00:00]} Nc6 {[%emt 0:00:20]} 8. Nb3 {[%emt 0:00:00]} a6 {[%emt 0:00:16]} 9. Nbxd4 {[%emt 0:00:00]} Nxd4 {[%emt 0:00:10]} 10. Nxd4 {[%emt 0:00:00]} Qc7 {[%emt 0:00:35]} 11. Qe2 {[%emt 0:02:00]} Bd6 {[%emt 0:01:19]} 12. Re1 {[%emt 0:03:25]} Ne7 {[%emt 0:02:45]} 13. h3 {[%emt 0:01:28]} O-O {[%emt 0:07:00]} 14. Bd3 {[%emt 0:02:18]} Ng6 {[%emt 0:12:11]} 15. Qe4 {[%emt 0:16:36]} Bd7 {[%emt 0:12:48]} 16. Bd2 {[%emt 0:03:28]} b5 {[%emt 0:09:08]} 17. g3 {[%emt 0:05:33]} Rae8 {[%emt 0:09:11]} 18. Qg2 {[%emt 0:16:31]} Ne5 {[%emt 0:10:58]} 19. Be2 {[%emt 0:04:01]} Bc5 {[%emt 0:05:43]} 1/2-1/2

[Event "Bruges Masters 2018"]
[Site "Brugge"]
[Date "2018.08.16"]
[Round "4"]
[White "De Jong, Migchiel"]
[Black "Tomov, Georgi"]
[Result "0-1"]
[ECO "B18"]
[WhiteElo "2339"]
[BlackElo "2307"]
[Annotator "NA"]
[PlyCount "68"]
[EventDate "2018.08.12"]
[EventType "swiss"]
[EventCountry "BEL"]
[SourceTitle "playchess.com"]
[Source "ChessBase"]
[SourceQuality "1"]
[TimeControl "5400+30"]

1. e4 {[%emt 0:00:34]} c6 {[%emt 0:00:00]} 2. d4 {[%emt 0:00:29]} d5 {[%emt 0:00:00]} 3. Nd2 {[%emt 0:00:10]} dxe4 {[%emt 0:00:00]} 4. Nxe4 {[%emt 0:00:13]} Bf5 {[%emt 0:00:00]} 5. Ng3 {[%emt 0:00:12]} Bg6 {[%emt 0:00:00]} 6. Nh3 {[%emt 0:00:23]} Nf6 {[%emt 0:00:41]} 7. c3 {[%emt 0:00:36]} Nbd7 {[%emt 0:01:24]} 8. Nf4 {[%emt 0:02:43]} Qc7 {[%emt 0:03:55]} 9. Bc4 {[%emt 0:01:34]} e5 {[%emt 0:00:57]} 10. Nxg6 {[%emt 0:00:34]} hxg6 {[%emt 0:00:06]} 11. O-O {[%emt 0:00:57]} Bd6 {[%emt 0:03:09]} 12. Re1 {[%emt 0:04:10]} Kf8 {[%emt 0:00:36]} 13. Bg5 {[%emt 0:02:57]} e4 {[%emt 0:09:02]} 14. Qd2 {[%emt 0:05:51]} Re8 {[%emt 0:00:53]} 15. h3 {[%emt 0:03:12]} Nb6 {[%emt 0:10:32]} 16. Bb3 {[%emt 0:01:01]} Nbd5 {[%emt 0:00:29]} 17. Ne2 {[%emt 0:07:10]} Rh5 {[%emt 0:16:42]} 18. Be3 {[%emt 0:05:27]} g5 {[%emt 0:10:56]} 19. Bxd5 {[%emt 0:01:34]} Nxd5 {[%emt 0:05:22]} 20. Bxg5 {[%emt 0:00:46]} Re6 {[%emt 0:01:01]} 21. c4 {[%emt 0:02:34]} Rg6 {[%emt 0:03:15]} 22. h4 {[%emt 0:01:46]} Bb4 {[%emt 0:07:28]} 23. Nc3 {[%emt 0:03:25]} Rgxg5 {[%emt 0:00:10]} 24. cxd5 {[%emt 0:01:22]} Rg4 {[%emt 0:00:31]} 25. g3 {[%emt 0:01:17]} cxd5 {[%emt 0:00:30]} 26. Rac1 {[%emt 0:02:06]} Qd7 {[%emt 0:05:06]} 27. a3 {[%emt 0:03:15]} Bd6 {[%emt 0:00:47]} 28. Kf1 {[%emt 0:02:57]} Bxg3 {[%emt 0:01:05]} 29. fxg3 {[%emt 0:02:36]} Rxg3 {[%emt 0:00:22]} 30. Qh2 {[%emt 0:39:42]} Qf5+ {[%emt 0:00:51]} 31. Qf2 {[%emt 0:00:25]} Rf3 {[%emt 0:01:23]} 32. Re2 {[%emt 0:01:02]} Rxh4 {[%emt 0:00:20]} 33. Ke1 {[%emt 0:01:11]} Rxf2 {[%emt 0:01:26]} 34. Rxf2 {[%emt 0:00:21]} Rh1+ {[%emt 0:01:07]} 0-1

[Event "Bruges Masters 2018"]
[Site "Brugge"]
[Date "2018.08.16"]
[Round "4"]
[White "Bisby, Daniel L"]
[Black "Mehar, Chinna Reddy C H"]
[Result "1/2-1/2"]
[ECO "A07"]
[WhiteElo "2314"]
[BlackElo "2345"]
[Annotator "NA"]
[PlyCount "21"]
[EventDate "2018.08.12"]
[EventType "swiss"]
[EventCountry "BEL"]
[SourceTitle "playchess.com"]
[Source "ChessBase"]
[SourceQuality "1"]
[TimeControl "5400+30"]

1. Nf3 {[%emt 0:00:00]} d5 {[%emt 0:00:40]} 2. g3 {[%emt 0:00:33]} Bg4 {[%emt 0:00:11]} 3. Bg2 {[%emt 0:00:28]} Nd7 {[%emt 0:00:08]} 4. O-O {[%emt 0:00:53]} Ngf6 {[%emt 0:00:30]} 5. d3 {[%emt 0:01:55]} e5 {[%emt 0:07:28]} 6. Nbd2 {[%emt 0:04:24]} Bc5 {[%emt 0:01:34]} 7. e4 {[%emt 0:02:01]} dxe4 {[%emt 0:00:12]} 8. dxe4 {[%emt 0:00:04]} O-O {[%emt 0:00:38]} 9. Qe2 {[%emt 0:03:44]} Qe7 {[%emt 0:00:55]} 10. h3 {[%emt 0:01:55]} Bxf3 {[%emt 0:03:21]} 11. Nb1 {[%emt 1:19:33]} 1/2-1/2

[Event "Bruges Masters 2018"]
[Site "Brugge"]
[Date "2018.08.16"]
[Round "4"]
[White "Townsend, M Paul"]
[Black "Korneev, Oleg"]
[Result "0-1"]
[ECO "D12"]
[WhiteElo "2246"]
[BlackElo "2513"]
[Annotator "ChessBase"]
[PlyCount "88"]
[EventDate "2018.08.12"]
[EventType "swiss"]
[EventCountry "BEL"]
[SourceTitle "playchess.com"]
[Source "ChessBase"]
[SourceQuality "1"]
[TimeControl "5400+30"]

1. d4 {[%emt 0:00:00]} d5 {[%emt 0:07:30]} 2. c4 {[%emt 0:00:18]} c6 {[%emt 0:05:19]} 3. Nf3 {[%emt 0:00:15]} Nf6 {[%emt 0:00:20]} 4. e3 {[%emt 0:00:22]} Bf5 {[%emt 0:00:03]} 5. Nc3 {[%emt 0:00:16]} e6 {[%emt 0:00:04]} 6. Nh4 {[%emt 0:00:32]} Be4 {[%emt 0:00:40]} 7. f3 {[%emt 0:02:22]} Bg6 {[%emt 0:00:19]} 8. Qb3 {[%emt 0:07:07]} Qc7 {[%emt 0:00:48]} 9. g3 {[%emt 0:06:31]} Be7 {[%emt 0:00:16]} 10. Bd2 {[%emt 0:02:23]} Bh5 {[%emt 0:01:08]} 11. Be2 {[%emt 0:03:57]} Nfd7 {[%emt 0:23:08]} 12. Ng2 {[%emt 0:04:10]} Nb6 {[%emt 0:01:01]} 13. c5 {[%emt 0:25:10]} Nc4 {[%emt 0:02:25]} 14. Nf4 {[%emt 0:06:53]} Nxd2 {[%emt 0:00:55]} 15. Kxd2 {[%emt 0:00:05]} Bg6 {[%emt 0:00:18]} 16. Nxg6 {[%emt 0:13:44]} hxg6 {[%emt 0:00:16]} 17. Qc2 {[%emt 0:00:52]} e5 {[%emt 0:07:19]} 18. Rad1 {[%emt 0:03:57]} Nd7 {[%emt 0:04:57]} 19. Ke1 {[%emt 0:01:42]} exd4 {[%emt 0:08:06]} 20. exd4 {[%emt 0:00:06]} Nf8 {[%emt 0:09:04]} 21. Kf2 {[%emt 0:02:14]} Ne6 {[%emt 0:00:15]} 22. Bf1 {[%emt 0:00:32]} g5 {[%emt 0:03:26]} 23. Kg2 {[%emt 0:03:17]} Bf6 {[%emt 0:00:26]} 24. Ne2 {[%emt 0:00:26]} g6 {[%emt 0:00:12]} 25. Qd2 {[%emt 0:03:01]} Kf8 {[%emt 0:00:19]} 26. h3 {[%emt 0:03:17]} Kg7 {[%emt 0:00:11]} 27. Rh2 {[%emt 0:00:19]} b6 {[%emt 0:00:35]} 28. cxb6 {[%emt 0:02:15]} axb6 {[%emt 0:00:37]} 29. b3 {[%emt 0:00:47]} Ra3 {[%emt 0:03:51]} 30. Rc1 {[%emt 0:00:46]} Rha8 {[%emt 0:01:49]} 31. Rc2 {[%emt 0:01:29]} Qa7 {[%emt 0:04:08]} 32. Rxc6 {[%emt 0:02:08]} Rxa2 {[%emt 0:00:03]} 33. Rc2 {[%emt 0:00:19]} Rxc2 {[%emt 0:00:24]} 34. Qxc2 {[%emt 0:00:02]} Bxd4 {[%emt 0:04:02]} 35. Nxd4 {[%emt 0:01:35]} Nxd4 {[%emt 0:00:07]} 36. Qd3 {[%emt 0:00:07]} Qa1 {[%emt 0:01:58]} 37. Kg1 {[%emt 0:00:35]} Nf5 {[%emt 0:00:54]} 38. Rd2 {[%emt 0:00:32]} Nxg3 {[%emt 0:01:51]} 39. Rd1 {[%emt 0:01:08]} Qe5 {[%emt 0:00:17]} 40. Qd2 {[%emt 0:00:58]} Nf5 {[%emt 0:05:27]} 41. Bg2 {[%emt 0:01:48]} Ra3 {[%emt 0:01:33]} 42. Re1 {[%emt 0:01:54]} Qd4+ {[%emt 0:00:14]} 43. Qxd4+ {[%emt 0:00:22]} Nxd4 {[%emt 0:00:02]} 44. Rd1 {[%emt 0:00:05]} Ne2+ {[%emt 0:00:07]} 0-1

[Event "Bruges Masters 2018"]
[Site "Brugge"]
[Date "2018.08.16"]
[Round "4"]
[White "Mesman, Edwyn"]
[Black "Koziak, Vitali"]
[Result "1/2-1/2"]
[ECO "A73"]
[WhiteElo "2154"]
[BlackElo "2476"]
[Annotator "ChessBase"]
[PlyCount "61"]
[EventDate "2018.08.12"]
[EventType "swiss"]
[EventCountry "BEL"]
[SourceTitle "playchess.com"]
[Source "ChessBase"]
[SourceQuality "1"]
[TimeControl "5400+30"]

1. d4 {[%emt 0:00:00]} Nf6 {[%emt 0:02:04]} 2. c4 {[%emt 0:00:00]} e6 {[%emt 0:00:31]} 3. Nc3 {[%emt 0:00:00]} c5 {[%emt 0:01:58]} 4. d5 {[%emt 0:00:00]} exd5 {[%emt 0:00:05]} 5. cxd5 {[%emt 0:00:11]} d6 {[%emt 0:00:04]} 6. Nf3 {[%emt 0:00:20]} g6 {[%emt 0:00:19]} 7. Nd2 {[%emt 0:00:20]} Nbd7 {[%emt 0:03:39]} 8. e4 {[%emt 0:02:21]} Bg7 {[%emt 0:00:31]} 9. Be2 {[%emt 0:00:08]} O-O {[%emt 0:00:46]} 10. O-O {[%emt 0:00:26]} Ne8 {[%emt 0:18:30]} 11. Re1 {[%emt 0:02:54]} Nc7 {[%emt 0:04:11]} 12. a4 {[%emt 0:00:53]} a6 {[%emt 0:20:57]} 13. Nc4 {[%emt 0:01:46]} Qe7 {[%emt 0:04:40]} 14. Bf1 {[%emt 0:27:05]} Re8 {[%emt 0:04:30]} 15. f4 {[%emt 0:04:00]} Bd4+ {[%emt 0:03:06]} 16. Be3 {[%emt 0:03:01]} Qf6 {[%emt 0:07:25]} 17. Qf3 {[%emt 0:11:38]} Rb8 {[%emt 0:01:53]} 18. Rab1 {[%emt 0:22:10]} b5 {[%emt 0:04:41]} 19. axb5 {[%emt 0:00:48]} axb5 {[%emt 0:03:15]} 20. Na5 {[%emt 0:00:10]} Bxc3 {[%emt 0:04:31]} 21. bxc3 {[%emt 0:00:06]} Qxc3 {[%emt 0:00:15]} 22. Nc6 {[%emt 0:00:11]} Rb6 {[%emt 0:00:57]} 23. e5 {[%emt 0:00:30]} Bb7 {[%emt 0:05:37]} 24. exd6 {[%emt 0:12:17]} Nxd5 {[%emt 0:00:40]} 25. Qxd5 {[%emt 0:00:09]} Rxe3 {[%emt 0:03:38]} 26. Ne7+ {[%emt 0:03:35]} Kf8 {[%emt 0:01:13]} 27. Rec1 {[%emt 0:00:53]} Qf6 {[%emt 0:01:52]} 28. Qd2 {[%emt 0:00:33]} Qxf4 {[%emt 0:01:21]} 29. Rd1 {[%emt 0:06:13]} Re4 {[%emt 0:00:39]} 30. Qxf4 {[%emt 0:01:15]} Rxf4 {[%emt 0:00:01]} 31. Bxb5 {[%emt 0:00:16]} 1/2-1/2

[Event "Bruges Masters 2018"]
[Site "Brugge"]
[Date "2018.08.16"]
[Round "5"]
[White "Turner, Matthew J"]
[Black "Bisby, Daniel L"]
[Result "1/2-1/2"]
[ECO "E63"]
[WhiteElo "2533"]
[BlackElo "2314"]
[Annotator "ChessBase"]
[PlyCount "54"]
[EventDate "2018.08.12"]
[EventType "swiss"]
[EventCountry "BEL"]
[SourceTitle "playchess.com"]
[Source "ChessBase"]
[SourceQuality "1"]
[TimeControl "5400+30"]

1. d4 {[%emt 0:00:00]} Nf6 {[%emt 0:03:44]} 2. Nf3 {[%emt 0:00:13]} g6 {[%emt 0:00:32]} 3. c4 {[%emt 0:00:31]} Bg7 {[%emt 0:00:09]} 4. g3 {[%emt 0:00:13]} O-O {[%emt 0:01:21]} 5. Bg2 {[%emt 0:00:06]} d6 {[%emt 0:00:57]} 6. Nc3 {[%emt 0:00:47]} Nc6 {[%emt 0:06:28]} 7. O-O {[%emt 0:00:52]} a6 {[%emt 0:01:06]} 8. Re1 {[%emt 0:00:38]} Rb8 {[%emt 0:04:14]} 9. Rb1 {[%emt 0:00:19]} b5 {[%emt 0:06:24]} 10. cxb5 {[%emt 0:00:51]} axb5 {[%emt 0:00:04]} 11. b4 {[%emt 0:00:11]} e6 {[%emt 0:05:17]} 12. e4 {[%emt 0:04:19]} Ne7 {[%emt 0:03:08]} 13. Bg5 {[%emt 0:07:00]} h6 {[%emt 0:01:23]} 14. Bxf6 {[%emt 0:00:55]} Bxf6 {[%emt 0:00:06]} 15. Qe2 {[%emt 0:01:02]} Bg7 {[%emt 0:02:31]} 16. Rbc1 {[%emt 0:00:37]} Bd7 {[%emt 0:01:50]} 17. e5 {[%emt 0:02:59]} Bc6 {[%emt 0:05:18]} 18. Ne4 {[%emt 0:01:11]} Bxe4 {[%emt 0:01:29]} 19. Qxe4 {[%emt 0:00:06]} Nd5 {[%emt 0:00:22]} 20. Qb1 {[%emt 0:03:39]} Ra8 {[%emt 0:05:11]} 21. Nd2 {[%emt 0:01:42]} dxe5 {[%emt 0:01:59]} 22. dxe5 {[%emt 0:00:05]} Ra4 {[%emt 0:01:21]} 23. Bxd5 {[%emt 0:01:46]} Qxd5 {[%emt 0:00:15]} 24. Ne4 {[%emt 0:01:21]} Qxa2 {[%emt 0:09:31]} 25. Qxa2 {[%emt 0:02:27]} Rxa2 {[%emt 0:00:07]} 26. Nf6+ {[%emt 0:00:48]} Bxf6 {[%emt 0:04:42]} 27. exf6 {[%emt 0:01:48]} Ra4 {[%emt 0:06:28]} 1/2-1/2

[Event "Bruges Masters 2018"]
[Site "Brugge"]
[Date "2018.08.16"]
[Round "5"]
[White "Korneev, Oleg"]
[Black "Baba, Masahiro"]
[Result "1-0"]
[ECO "B90"]
[WhiteElo "2513"]
[BlackElo "2306"]
[Annotator "ChessBase"]
[PlyCount "97"]
[EventDate "2018.08.12"]
[EventType "swiss"]
[EventCountry "BEL"]
[SourceTitle "playchess.com"]
[Source "ChessBase"]
[SourceQuality "1"]
[TimeControl "5400+30"]

1. e4 {[%emt 0:11:03]} c5 {[%emt 0:00:00]} 2. Nf3 {[%emt 0:00:03]} d6 {[%emt 0:00:00]} 3. d4 {[%emt 0:00:03]} cxd4 {[%emt 0:00:00]} 4. Nxd4 {[%emt 0:00:02]} Nf6 {[%emt 0:00:00]} 5. Nc3 {[%emt 0:00:06]} a6 {[%emt 0:00:00]} 6. Be3 {[%emt 0:00:04]} e5 {[%emt 0:00:05]} 7. Nf3 {[%emt 0:00:04]} Qc7 {[%emt 0:00:26]} 8. a4 {[%emt 0:00:07]} Be7 {[%emt 0:00:25]} 9. Be2 {[%emt 0:05:58]} O-O {[%emt 0:00:11]} 10. O-O {[%emt 0:00:02]} b6 {[%emt 0:00:20]} 11. Nh4 {[%emt 0:12:05]} g6 {[%emt 0:04:26]} 12. Nf3 {[%emt 0:04:53]} Bb7 {[%emt 0:01:17]} 13. Qd3 {[%emt 0:05:20]} Nbd7 {[%emt 0:01:42]} 14. Nd2 {[%emt 0:00:37]} Rac8 {[%emt 0:13:43]} 15. Bf3 {[%emt 0:00:31]} Nc5 {[%emt 0:10:12]} 16. Qc4 {[%emt 0:02:43]} Qd8 {[%emt 0:11:17]} 17. Qa2 {[%emt 0:01:16]} Ne6 {[%emt 0:08:39]} 18. Qb3 {[%emt 0:08:12]} Nd4 {[%emt 0:07:59]} 19. Bxd4 {[%emt 0:02:03]} exd4 {[%emt 0:00:05]} 20. Ne2 {[%emt 0:05:40]} d5 {[%emt 0:01:13]} 21. exd5 {[%emt 0:06:24]} Nxd5 {[%emt 0:01:54]} 22. Nxd4 {[%emt 0:01:39]} Qd7 {[%emt 0:07:46]} 23. Rfd1 {[%emt 0:01:53]} Nf4 {[%emt 0:03:32]} 24. Bxb7 {[%emt 0:04:32]} Qxb7 {[%emt 0:00:09]} 25. Qf3 {[%emt 0:00:30]} Qc7 {[%emt 0:01:44]} 26. Ne4 {[%emt 0:01:54]} Rfd8 {[%emt 0:02:40]} 27. g3 {[%emt 0:02:53]} Nh3+ {[%emt 0:01:48]} 28. Kg2 {[%emt 0:00:41]} Ng5 {[%emt 0:01:36]} 29. Nxg5 {[%emt 0:00:02]} Bxg5 {[%emt 0:00:06]} 30. h4 {[%emt 0:06:05]} Bh6 {[%emt 0:00:24]} 31. c3 {[%emt 0:00:18]} Bg7 {[%emt 0:02:41]} 32. Nc2 {[%emt 0:03:23]} Qc4 {[%emt 0:03:41]} 33. Ne3 {[%emt 0:09:35]} Qb3 {[%emt 0:00:36]} 34. Nd5 {[%emt 0:00:29]} Re8 {[%emt 0:00:18]} 35. Rd2 {[%emt 0:01:35]} Re6 {[%emt 0:01:31]} 36. Qf4 {[%emt 0:00:51]} a5 {[%emt 0:02:46]} 37. Ra3 {[%emt 0:03:56]} Qc4 {[%emt 0:00:08]} 38. Qxc4 {[%emt 0:00:42]} Rxc4 {[%emt 0:00:04]} 39. b3 {[%emt 0:00:18]} Rce4 {[%emt 0:03:31]} 40. Raa2 {[%emt 0:00:17]} h5 {[%emt 0:00:15]} 41. Rd3 {[%emt 0:00:49]} Bh6 {[%emt 0:00:34]} 42. Nc7 {[%emt 0:00:35]} Rc6 {[%emt 0:00:18]} 43. Nb5 {[%emt 0:00:15]} Kg7 {[%emt 0:01:51]} 44. Rd6 {[%emt 0:00:24]} Rxd6 {[%emt 0:00:45]} 45. Nxd6 {[%emt 0:00:02]} Re6 {[%emt 0:00:15]} 46. Nb5 {[%emt 0:00:33]} g5 {[%emt 0:00:30]} 47. Nd4 {[%emt 0:00:44]} Re1 {[%emt 0:00:20]} 48. hxg5 {[%emt 0:00:30]} Bxg5 {[%emt 0:01:18]} 49. Nf3 {[%emt 0:00:01]} 1-0